[Event "17th Memorial Lezcano Montalvo 2025"]
[Site "Gran Canaria"]
[Date "2025.04.12"]
[Round "1.27"]
[White "Castellanos Gomez, Alejandro"]
[Black "Alessandro, Sergio"]
[Result "1-0"]
[Annotator "RC"]
[ECO "D00"]
[WhiteElo "2267"]
[BlackElo "1666"]
[PlyCount "67"]
[EventDate "2025.04.13"]
[EventType "swiss"]
[EventCountry "ESP"]
[SourceTitle "playchess.com"]
[Source "ChessBase"]
[SourceQuality "1"]
[TimeControl "5400+30"]

1. d4 {[%emt 0:00:04]} d5 {[%emt 0:00:09]} 2. Bf4 {[%emt 0:00:16]} c6 {[%emt 0:00:08]} 3. e3 {[%emt 0:01:44]} f5 {[%emt 0:00:07]} 4. Nf3 {[%emt 0:00:36]} Nf6 {[%emt 0:00:06]} 5. Bd3 {[%emt 0:01:37]} e6 {[%emt 0:00:02]} 6. O-O {[%emt 0:02:22]} Bd6 {[%emt 0:00:02]} 7. Ne5 {[%emt 0:02:00]} O-O {[%emt 0:00:03]} 8. c4 {[%emt 0:00:36]} Bxe5 {[%emt 0:00:25]} 9. Bxe5 {[%emt 0:01:24]} Nbd7 {[%emt 0:00:06]} 10. Bd6 {[%emt 0:09:05]} Re8 {[%emt 0:00:32]} 11. cxd5 {[%emt 0:01:12]} cxd5 {[%emt 0:00:03]} 12. Nc3 {[%emt 0:02:30]} a6 {[%emt 0:00:21]} 13. Rc1 {[%emt 0:02:37]} Ne4 {[%emt 1:34:56]} 14. Bf4 {[%emt 0:05:33]} g5 {[%emt 0:00:00]} 15. Bc7 {[%emt 0:00:58]} Qxc7 {[%emt 0:00:00]} 16. Nxe4 {[%emt 0:00:18]} Qd8 {[%emt 0:00:00]} 17. Nd6 {[%emt 0:00:22]} Rf8 {[%emt 0:00:00]} 18. Qb3 {[%emt 0:05:11]} Qb6 {[%emt 0:00:00]} 19. Qxb6 {[%emt 0:00:32]} Nxb6 {[%emt 0:00:00]} 20. Rc7 {[%emt 0:00:15]} Rb8 {[%emt 0:00:00]} 21. Rfc1 {[%emt 0:00:19]} g4 {[%emt 0:00:00]} 22. f3 {[%emt 0:08:05]} h5 {[%emt 0:00:00]} 23. b3 {[%emt 0:01:14]} Rd8 {[%emt 0:00:00]} 24. Nf7 {[%emt 0:00:24]} Rd7 {[%emt 0:00:00]} 25. Ne5 {[%emt 0:00:11]} Rg7 {[%emt 0:00:00]} 26. a4 {[%emt 0:07:23]} gxf3 {[%emt 0:00:00]} 27. Rxg7+ {[%emt 0:00:22]} Kxg7 {[%emt 0:00:00]} 28. Rc7+ {[%emt 0:00:23]} Kg8 {[%emt 0:00:00]} 29. gxf3 {[%emt 0:01:03]} Na8 {[%emt 0:00:00]} 30. Re7 {[%emt 0:01:04]} b5 {[%emt 0:00:00]} 31. Re8+ {[%emt 0:02:46]} Kg7 {[%emt 0:00:00]} 32. Nc6 {[%emt 0:00:44]} Kf7 {[%emt 0:00:00]} 33. Rd8 {[%emt 0:01:07]} Bb7 {[%emt 0:00:00]} 34. Ne5+ {[%emt 0:00:38]} 1-0

[Event "17th Memorial Lezcano Montalvo 2025"]
[Site "Gran Canaria"]
[Date "2025.04.12"]
[Round "1.28"]
[White "Cabrera Martel, Isaac"]
[Black "Hernando Rodrigo, Jose Maria"]
[Result "0-1"]
[Annotator "RC"]
[ECO "B06"]
[WhiteElo "1655"]
[BlackElo "2256"]
[PlyCount "45"]
[EventDate "2025.04.13"]
[EventType "swiss"]
[EventCountry "ESP"]
[SourceTitle "playchess.com"]
[Source "ChessBase"]
[SourceQuality "1"]
[TimeControl "5400+30"]

1. d4 {[%emt 0:00:03]} g6 {[%emt 0:01:40]} 2. Nc3 {[%emt 0:00:49]} Bg7 {[%emt 0:00:40]} 3. Bf4 {[%emt 0:00:15]} d6 {[%emt 0:00:49]} 4. e4 {[%emt 0:11:03]} Nc6 {[%emt 0:03:13]} 5. Nf3 {[%emt 0:02:55]} Bg4 {[%emt 0:02:26]} 6. Be3 {[%emt 0:06:54]} Bxf3 {[%emt 0:06:11]} 7. gxf3 {[%emt 0:00:07]} e5 {[%emt 0:00:07]} 8. dxe5 {[%emt 0:05:10]} dxe5 {[%emt 0:03:29]} 9. Nd5 {[%emt 0:00:31]} Qd6 {[%emt 0:06:23]} 10. Qd2 {[%emt 0:01:25]} Nd4 {[%emt 0:03:35]} 11. Bg2 {[%emt 0:01:53]} c6 {[%emt 0:01:17]} 12. Nc3 {[%emt 0:04:31]} Qb4 {[%emt 0:06:50]} 13. O-O-O {[%emt 0:01:44]} Rd8 {[%emt 0:01:04]} 14. Ne2 {[%emt 0:05:24]} Nb3+ {[%emt 0:01:25]} 15. axb3 {[%emt 0:04:02]} Rxd2 {[%emt 0:00:05]} 16. Rxd2 {[%emt 0:00:30]} Nf6 {[%emt 0:00:30]} 17. Rhd1 {[%emt 0:00:35]} O-O {[%emt 0:00:10]} 18. Kb1 {[%emt 0:02:33]} Qe7 {[%emt 0:04:43]} 19. Bh3 {[%emt 0:13:01]} Nh5 {[%emt 0:01:03]} 20. Bg4 {[%emt 0:05:29]} Nf4 {[%emt 0:00:45]} 21. Rd7 {[%emt 0:02:50]} Qh4 {[%emt 0:00:13]} 22. Nc3 {[%emt 0:03:17]} h5 {[%emt 0:00:42]} 23. Bc1 {[%emt 0:26:59]} 0-1

[Event "17th Memorial Lezcano Montalvo 2025"]
[Site "Gran Canaria"]
[Date "2025.04.12"]
[Round "1.29"]
[White "Moreno Diepa, Diego"]
[Black "Morell Rojas, Samuel"]
[Result "1-0"]
[Annotator "RC"]
[ECO "B12"]
[WhiteElo "2243"]
[BlackElo "1652"]
[PlyCount "77"]
[EventDate "2025.04.13"]
[EventType "swiss"]
[EventCountry "ESP"]
[SourceTitle "playchess.com"]
[Source "ChessBase"]
[SourceQuality "1"]
[TimeControl "5400+30"]

1. e4 {[%emt 0:00:03]} c6 {[%emt 0:00:10]} 2. d4 {[%emt 0:00:07]} d5 {[%emt 0:00:10]} 3. e5 {[%emt 0:00:05]} c5 {[%emt 0:00:05]} 4. dxc5 {[%emt 0:00:20]} e6 {[%emt 0:00:10]} 5. Nf3 {[%emt 0:00:25]} Bxc5 {[%emt 0:00:14]} 6. Bd3 {[%emt 0:00:12]} Nd7 {[%emt 0:01:03]} 7. O-O {[%emt 0:00:06]} Qc7 {[%emt 0:00:21]} 8. Qe2 {[%emt 0:00:54]} Ne7 {[%emt 0:00:31]} 9. Bf4 {[%emt 0:00:45]} Nc6 {[%emt 0:00:24]} 10. Bg3 {[%emt 0:00:49]} Nd4 {[%emt 0:00:40]} 11. Nxd4 {[%emt 0:05:38]} Bxd4 {[%emt 0:02:22]} 12. Nc3 {[%emt 0:01:04]} Bxe5 {[%emt 0:00:27]} 13. Nxd5 {[%emt 0:03:10]} Qd6 {[%emt 0:02:58]} 14. Ne3 {[%emt 0:02:30]} Bxg3 {[%emt 0:00:53]} 15. hxg3 {[%emt 0:01:04]} O-O {[%emt 0:01:42]} 16. Rad1 {[%emt 0:00:24]} Qc7 {[%emt 0:01:37]} 17. c3 {[%emt 0:00:08]} Nf6 {[%emt 0:00:23]} 18. Ng4 {[%emt 0:03:10]} Qe7 {[%emt 0:06:30]} 19. Ne5 {[%emt 0:01:04]} Nd7 {[%emt 1:19:20]} 20. Nxd7 {[%emt 0:00:40]} Bxd7 {[%emt 0:00:00]} 21. Bxh7+ {[%emt 0:00:31]} Kxh7 {[%emt 0:00:00]} 22. Qd3+ {[%emt 0:00:04]} g6 {[%emt 0:00:00]} 23. Qxd7 {[%emt 0:00:04]} Qg5 {[%emt 0:00:00]} 24. Qd2 {[%emt 0:06:08]} Qa5 {[%emt 0:00:00]} 25. a3 {[%emt 0:00:29]} Rh8 {[%emt 0:00:00]} 26. Qf4 {[%emt 0:03:40]} Kg7 {[%emt 0:00:00]} 27. Rd7 {[%emt 0:01:08]} Raf8 {[%emt 0:00:00]} 28. Qd4+ {[%emt 0:02:27]} Kg8 {[%emt 0:00:00]} 29. Re1 {[%emt 0:03:09]} Qh5 {[%emt 0:00:00]} 30. f3 {[%emt 0:00:44]} Qb5 {[%emt 0:00:00]} 31. c4 {[%emt 0:03:27]} Qa5 {[%emt 0:00:00]} 32. Re2 {[%emt 1:02:01]} Qh5 33. Rxe6 {[%emt 0:00:00]} Qa5 {[%emt 0:00:00]} 34. Re1 {[%emt 0:00:00]} Kh7 {[%emt 0:00:00]} 35. Rd1 {[%emt 0:00:00]} Qh5 {[%emt 0:00:00]} 36. Kf2 {[%emt 0:00:00]} Qh6 {[%emt 0:00:00]} 37. Rd5 {[%emt 0:00:00]} Rhg8 {[%emt 0:00:00]} 38. Qf6 {[%emt 0:00:00]} g5 {[%emt 0:00:00]} 39. R1d4 {[%emt 0:00:00]} 1-0

[Event "17th Memorial Lezcano Montalvo 2025"]
[Site "Gran Canaria"]
[Date "2025.04.12"]
[Round "1.30"]
[White "Hernandez De Armas, Leonardo"]
[Black "Rodriguez Avila, Alvaro"]
[Result "0-1"]
[Annotator "RC"]
[ECO "B34"]
[WhiteElo "1645"]
[BlackElo "2212"]
[PlyCount "28"]
[EventDate "2025.04.13"]
[EventType "swiss"]
[EventCountry "ESP"]
[SourceTitle "playchess.com"]
[Source "ChessBase"]
[SourceQuality "1"]
[TimeControl "5400+30"]

1. e4 {[%emt 0:00:03]} c5 {[%emt 0:00:16]} 2. Nf3 {[%emt 0:00:10]} g6 {[%emt 0:00:08]} 3. d4 {[%emt 0:00:35]} cxd4 {[%emt 0:00:09]} 4. Nxd4 {[%emt 0:00:17]} Bg7 {[%emt 0:00:09]} 5. Nc3 {[%emt 0:00:55]} Nc6 {[%emt 0:00:10]} 6. Be3 {[%emt 0:01:10]} Nf6 {[%emt 0:00:43]} 7. f3 {[%emt 0:02:45]} O-O {[%emt 0:07:30]} 8. Qd2 {[%emt 0:09:34]} d5 {[%emt 0:00:29]} 9. exd5 {[%emt 0:04:55]} Nxd5 {[%emt 0:00:17]} 10. Nxc6 {[%emt 0:02:25]} bxc6 {[%emt 0:00:34]} 11. Bd4 {[%emt 0:01:24]} Bxd4 {[%emt 0:12:58]} 12. Qxd4 {[%emt 0:01:45]} e5 {[%emt 0:00:16]} 13. Qd2 {[%emt 0:06:20]} Be6 {[%emt 0:01:34]} 14. Bc4 {[%emt 0:07:08]} Qh4+ {[%emt 0:00:18]} 0-1

[Event "17th Memorial Lezcano Montalvo 2025"]
[Site "Gran Canaria"]
[Date "2025.04.12"]
[Round "1.31"]
[White "Tytynnik, Artem"]
[Black "Roca Marrero, Fernando"]
[Result "1-0"]
[Annotator "RC"]
[ECO "E94"]
[WhiteElo "2209"]
[BlackElo "1617"]
[PlyCount "91"]
[EventDate "2025.04.13"]
[EventType "swiss"]
[EventCountry "ESP"]
[SourceTitle "playchess.com"]
[Source "ChessBase"]
[SourceQuality "1"]
[TimeControl "5400+30"]

1. d4 {[%emt 0:00:14]} Nf6 {[%emt 0:00:42]} 2. c4 {[%emt 0:00:30]} d6 {[%emt 0:00:30]} 3. Nc3 {[%emt 0:00:30]} g6 {[%emt 0:00:30]} 4. e4 {[%emt 0:00:30]} Bg7 {[%emt 0:00:30]} 5. Be2 {[%emt 0:00:30]} Nbd7 {[%emt 0:00:30]} 6. Nf3 {[%emt 0:00:30]} O-O {[%emt 0:00:30]} 7. O-O {[%emt 0:00:30]} e5 {[%emt 0:00:30]} 8. d5 {[%emt 0:00:30]} a6 {[%emt 0:00:30]} 9. Qc2 {[%emt 0:00:30]} Rb8 {[%emt 0:00:30]} 10. b4 {[%emt 0:00:30]} b6 {[%emt 0:00:30]} 11. Ne1 {[%emt 0:00:30]} Re8 {[%emt 0:00:30]} 12. Nd3 {[%emt 0:00:30]} Bb7 {[%emt 0:00:30]} 13. Be3 {[%emt 0:00:30]} Qe7 {[%emt 0:00:30]} 14. a4 {[%emt 0:00:30]} Rec8 {[%emt 0:00:30]} 15. a5 {[%emt 0:00:30]} Qf8 {[%emt 0:00:30]} 16. f3 {[%emt 0:00:30]} Bh6 {[%emt 0:00:30]} 17. Bf2 {[%emt 0:00:30]} Nh5 {[%emt 0:00:30]} 18. Na4 {[%emt 0:00:30]} Nf4 {[%emt 0:00:30]} 19. Nc3 {[%emt 0:11:42]} Nh5 {[%emt 1:30:48]} 20. Na4 {[%emt 0:06:33]} Nf4 21. Nxf4 {[%emt 0:02:28]} Bxf4 {[%emt 0:00:00]} 22. g3 {[%emt 0:04:30]} Bg5 {[%emt 0:00:00]} 23. Qd3 {[%emt 0:07:38]} Qh6 {[%emt 0:00:00]} 24. c5 {[%emt 0:03:30]} bxc5 {[%emt 0:00:00]} 25. bxc5 {[%emt 0:00:28]} c6 {[%emt 0:00:00]} 26. dxc6 {[%emt 0:01:07]} Bxc6 {[%emt 0:00:00]} 27. Qxd6 {[%emt 0:04:10]} Bxa4 {[%emt 0:00:00]} 28. Rxa4 {[%emt 0:00:10]} Nxc5 {[%emt 0:00:00]} 29. Rc4 {[%emt 0:27:51]} Be3 {[%emt 0:00:00]} 30. f4 {[%emt 0:09:43]} Bxf2+ {[%emt 0:00:00]} 31. Rxf2 {[%emt 0:00:08]} Ne6 {[%emt 0:00:00]} 32. Qxe5 {[%emt 0:01:45]} Rb1+ {[%emt 0:00:00]} 33. Rf1 {[%emt 0:00:54]} Rxf1+ {[%emt 0:00:00]} 34. Bxf1 {[%emt 0:00:09]} Rd8 {[%emt 0:00:00]} 35. Qc3 {[%emt 0:07:19]} Qf8 {[%emt 0:00:00]} 36. Be2 {[%emt 0:03:06]} Qe7 {[%emt 0:00:00]} 37. Rc8 {[%emt 0:01:36]} Qd7 {[%emt 0:02:58]} 38. Rxd8+ {[%emt 0:00:18]} Nxd8 {[%emt 0:00:04]} 39. Kg2 {[%emt 0:02:43]} Qb7 {[%emt 0:03:24]} 40. Bf3 {[%emt 0:02:50]} h5 {[%emt 0:01:21]} 41. f5 {[%emt 0:00:33]} gxf5 {[%emt 0:01:55]} 42. exf5 {[%emt 0:00:13]} Qd7 {[%emt 0:00:49]} 43. Qf6 {[%emt 0:01:06]} Qd2+ {[%emt 0:00:50]} 44. Kh3 {[%emt 0:00:11]} Qxa5 {[%emt 0:00:26]} 45. Bxh5 {[%emt 0:00:32]} Qd5 {[%emt 0:00:37]} 46. Qg5+ {[%emt 0:00:10]} 1-0

[Event "17th Memorial Lezcano Montalvo 2025"]
[Site "Gran Canaria"]
[Date "2025.04.12"]
[Round "1.32"]
[White "Cattani, Cloe"]
[Black "Paquico Rodriguez, Ivan"]
[Result "0-1"]
[Annotator "RC"]
[ECO "A04"]
[WhiteElo "1614"]
[BlackElo "2202"]
[PlyCount "64"]
[EventDate "2025.04.13"]
[EventType "swiss"]
[EventCountry "ESP"]
[SourceTitle "playchess.com"]
[Source "ChessBase"]
[SourceQuality "1"]
[TimeControl "5400+30"]

1. e4 {[%emt 0:00:08]} d6 {[%emt 0:00:23]} 2. d3 {[%emt 0:01:31]} g6 {[%emt 0:00:38]} 3. g3 {[%emt 0:00:33]} Bg7 {[%emt 0:00:54]} 4. Bg2 {[%emt 0:00:22]} c5 {[%emt 0:00:49]} 5. Nf3 {[%emt 0:01:00]} Nc6 {[%emt 0:01:08]} 6. O-O {[%emt 0:02:25]} Bd7 {[%emt 0:02:42]} 7. Re1 {[%emt 0:06:03]} Rb8 {[%emt 0:04:11]} 8. Nbd2 {[%emt 0:05:18]} b5 {[%emt 0:05:15]} 9. Rb1 {[%emt 0:08:30]} Nb4 {[%emt 0:05:25]} 10. a3 {[%emt 0:03:50]} Na2 {[%emt 0:00:50]} 11. Ra1 {[%emt 0:07:14]} Nxc1 {[%emt 0:01:58]} 12. Qxc1 {[%emt 0:00:38]} Qc7 {[%emt 0:13:39]} 13. c3 {[%emt 0:06:05]} e6 {[%emt 0:04:19]} 14. d4 {[%emt 0:05:46]} cxd4 {[%emt 0:07:43]} 15. cxd4 {[%emt 0:01:02]} Qb6 {[%emt 0:00:50]} 16. Qc3 {[%emt 0:08:51]} Rc8 {[%emt 0:02:11]} 17. Qd3 {[%emt 0:01:03]} Ne7 {[%emt 0:00:53]} 18. b4 {[%emt 0:05:24]} O-O {[%emt 0:01:36]} 19. Rac1 {[%emt 0:00:43]} a5 {[%emt 0:04:36]} 20. Nb3 {[%emt 0:05:26]} axb4 {[%emt 0:03:53]} 21. axb4 {[%emt 0:00:41]} Bh6 {[%emt 0:00:48]} 22. Rxc8 {[%emt 0:01:08]} Rxc8 {[%emt 0:00:29]} 23. d5 {[%emt 0:06:12]} e5 {[%emt 0:08:57]} 24. Na5 {[%emt 0:01:16]} f5 {[%emt 0:03:43]} 25. Re2 {[%emt 0:04:24]} Qc7 {[%emt 0:04:20]} 26. Nxe5 {[%emt 0:04:13]} dxe5 {[%emt 0:01:59]} 27. d6 {[%emt 0:00:59]} Qc1+ {[%emt 0:00:27]} 28. Bf1 {[%emt 0:00:28]} Rc3 {[%emt 0:01:10]} 29. Nb3 {[%emt 0:04:47]} Qxf1+ {[%emt 0:00:28]} 30. Kxf1 {[%emt 0:00:13]} Rxd3 {[%emt 0:00:05]} 31. dxe7 {[%emt 0:01:40]} Rxb3 {[%emt 0:00:36]} 32. exf5 {[%emt 0:01:49]} gxf5 {[%emt 0:01:27]} 0-1

[Event "17th Memorial Lezcano Montalvo 2025"]
[Site "Gran Canaria"]
[Date "2025.04.12"]
[Round "1.33"]
[White "Estremera Panos, Sergio"]
[Black "Delgado Armas, Francisco David"]
[Result "1-0"]
[Annotator "RC"]
[ECO "D85"]
[WhiteElo "2195"]
[BlackElo "1608"]
[PlyCount "71"]
[EventDate "2025.04.13"]
[EventType "swiss"]
[EventCountry "ESP"]
[SourceTitle "playchess.com"]
[Source "ChessBase"]
[SourceQuality "1"]
[TimeControl "5400+30"]

1. d4 {[%emt 0:00:06]} d5 {[%emt 0:00:07]} 2. c4 {[%emt 0:00:20]} Nf6 {[%emt 0:00:20]} 3. cxd5 {[%emt 0:00:13]} Nxd5 {[%emt 0:00:58]} 4. e4 {[%emt 0:00:21]} Nb6 {[%emt 0:01:11]} 5. Nc3 {[%emt 0:00:24]} g6 {[%emt 0:01:48]} 6. h3 {[%emt 1:32:06]} a6 {[%emt 1:29:06]} 7. Nf3 {[%emt 0:00:30]} Bg7 {[%emt 0:00:30]} 8. Be3 {[%emt 0:00:30]} c6 {[%emt 0:00:30]} 9. Rc1 {[%emt 0:00:30]} N8d7 {[%emt 0:00:30]} 10. Be2 {[%emt 0:00:00]} O-O {[%emt 0:00:00]} 11. O-O {[%emt 0:00:00]} h6 {[%emt 0:01:00]} 12. Qb3 {[%emt 0:01:30]} Nf6 {[%emt 0:00:30]} 13. Rfd1 {[%emt 0:00:30]} Nbd7 {[%emt 0:00:00]} 14. e5 {[%emt 0:00:00]} Nh7 {[%emt 0:00:00]} 15. e6 {[%emt 0:00:00]} fxe6 {[%emt 0:00:00]} 16. Qxe6+ {[%emt 0:00:00]} Kh8 17. Nh4 {[%emt 0:00:00]} Rf6 {[%emt 0:00:00]} 18. Nxg6+ {[%emt 0:00:00]} Rxg6 {[%emt 0:00:00]} 19. Qxg6 {[%emt 0:00:00]} Ndf6 {[%emt 0:00:00]} 20. Bxh6 {[%emt 0:00:00]} Bxh6 {[%emt 0:00:00]} 21. Qxh6 {[%emt 0:00:00]} Bf5 {[%emt 0:00:00]} 22. Bd3 {[%emt 0:00:00]} Qd7 {[%emt 0:00:00]} 23. Qf4 {[%emt 0:00:00]} Bxh3 {[%emt 0:00:00]} 24. Bxh7 {[%emt 0:00:00]} Bxg2 25. Kxg2 Kxh7 {[%emt 0:06:30]} 26. Rg1 {[%emt 0:00:00]} Kg7 {[%emt 0:00:00]} 27. Rh1 {[%emt 0:00:00]} Rd8 {[%emt 0:01:00]} 28. Rh3 Rf8 {[%emt 0:00:00]} 29. Rch1 {[%emt 0:00:00]} Kf7 {[%emt 0:00:00]} 30. Rh8 {[%emt 0:00:00]} Rg8+ {[%emt 0:00:00]} 31. Rxg8 {[%emt 0:00:00]} Kxg8 {[%emt 0:00:00]} 32. Rh3 {[%emt 0:00:00]} b5 {[%emt 0:00:00]} 33. Rg3+ {[%emt 0:00:00]} Kf7 {[%emt 0:00:00]} 34. Kg1 {[%emt 0:00:00]} b4 {[%emt 0:00:00]} 35. Ne4 {[%emt 0:00:00]} Qxd4 {[%emt 0:00:00]} 36. Ng5+ {[%emt 0:00:00]} 1-0

[Event "17th Memorial Lezcano Montalvo 2025"]
[Site "Gran Canaria"]
[Date "2025.04.12"]
[Round "1.34"]
[White "De Gabriel Stella, Alejandro"]
[Black "Rodriguez Lopez, David"]
[Result "0-1"]
[Annotator "RC"]
[ECO "C54"]
[WhiteElo "1606"]
[BlackElo "2182"]
[PlyCount "81"]
[EventDate "2025.04.13"]
[EventType "swiss"]
[EventCountry "ESP"]
[SourceTitle "playchess.com"]
[Source "ChessBase"]
[SourceQuality "1"]
[TimeControl "5400+30"]

1. e4 {[%emt 0:00:01]} e5 {[%emt 0:00:08]} 2. Nf3 {[%emt 0:00:06]} Nc6 {[%emt 0:00:05]} 3. Bc4 {[%emt 0:00:06]} Bc5 {[%emt 0:00:13]} 4. c3 {[%emt 0:00:05]} Nf6 {[%emt 0:00:18]} 5. d4 {[%emt 0:00:06]} exd4 {[%emt 0:00:12]} 6. cxd4 {[%emt 0:00:08]} Bb4+ {[%emt 0:00:13]} 7. Nc3 {[%emt 0:00:08]} O-O {[%emt 0:01:13]} 8. O-O {[%emt 0:00:12]} Bxc3 {[%emt 0:05:33]} 9. bxc3 {[%emt 0:00:11]} Nxe4 {[%emt 0:00:27]} 10. d5 {[%emt 0:05:12]} Ne7 {[%emt 0:00:54]} 11. Qd4 {[%emt 0:03:12]} Nd6 {[%emt 0:03:02]} 12. Bd3 {[%emt 0:02:47]} Ng6 {[%emt 0:00:49]} 13. Ba3 {[%emt 0:02:06]} b6 {[%emt 0:03:33]} 14. Rfe1 {[%emt 0:04:30]} Bb7 {[%emt 0:02:33]} 15. h4 {[%emt 0:03:41]} Qf6 {[%emt 0:03:31]} 16. Qxf6 {[%emt 0:01:20]} gxf6 {[%emt 0:00:02]} 17. c4 {[%emt 0:07:48]} Rfe8 {[%emt 0:00:16]} 18. Bxd6 {[%emt 0:05:16]} cxd6 {[%emt 0:00:08]} 19. Nd4 {[%emt 0:07:34]} Rxe1+ {[%emt 0:30:33]} 20. Rxe1 {[%emt 0:00:10]} Ne5 {[%emt 0:00:15]} 21. Bf1 {[%emt 0:01:14]} Ba6 {[%emt 0:03:01]} 22. f4 {[%emt 0:06:59]} Nxc4 {[%emt 0:03:47]} 23. Nf5 {[%emt 0:09:51]} Kf8 {[%emt 0:01:58]} 24. h5 {[%emt 0:10:45]} b5 {[%emt 0:02:09]} 25. h6 {[%emt 0:06:43]} Bb7 {[%emt 0:02:54]} 26. Rd1 {[%emt 0:02:28]} Nb6 {[%emt 0:05:46]} 27. Bxb5 {[%emt 0:05:53]} Nxd5 {[%emt 0:06:10]} 28. Rd4 {[%emt 0:01:30]} Nc3 {[%emt 0:24:47]} 29. Nxd6 {[%emt 0:01:22]} Nxb5 {[%emt 0:00:00]} 30. Nxb5 {[%emt 0:00:08]} Bc6 {[%emt 0:00:00]} 31. Nd6 {[%emt 0:01:34]} Rb8 {[%emt 0:00:00]} 32. Rd2 {[%emt 0:00:30]} Ke7 {[%emt 0:00:00]} 33. Nf5+ {[%emt 0:01:19]} Kd8 {[%emt 0:00:00]} 34. Nd4 {[%emt 0:00:39]} Be4 {[%emt 0:00:00]} 35. Kf2 {[%emt 0:00:35]} f5 {[%emt 0:00:00]} 36. Nb3 {[%emt 0:00:54]} Ke7 {[%emt 0:00:00]} 37. Ke3 {[%emt 0:00:27]} Rg8 {[%emt 0:00:00]} 38. Nc5 {[%emt 0:00:15]} Rg3+ {[%emt 0:00:00]} 39. Kd4 {[%emt 0:00:23]} Bxg2 {[%emt 0:00:00]} 40. Ke5 {[%emt 0:01:03]} d6+ {[%emt 0:00:00]} 41. Kd4 {[%emt 0:11:49]} 0-1

[Event "17th Memorial Lezcano Montalvo 2025"]
[Site "Gran Canaria"]
[Date "2025.04.12"]
[Round "1.35"]
[White "Garcia Brion, Eduardo"]
[Black "Mayor Viera, Aaron"]
[Result "1-0"]
[Annotator "RC"]
[ECO "A18"]
[WhiteElo "2171"]
[BlackElo "1600"]
[PlyCount "61"]
[EventDate "2025.04.13"]
[EventType "swiss"]
[EventCountry "ESP"]
[SourceTitle "playchess.com"]
[Source "ChessBase"]
[SourceQuality "1"]
[TimeControl "5400+30"]

1. c4 {[%emt 0:00:03]} Nf6 {[%emt 0:00:52]} 2. Nc3 {[%emt 0:00:05]} e6 {[%emt 0:00:13]} 3. e4 {[%emt 0:00:08]} e5 {[%emt 0:00:26]} 4. Nf3 {[%emt 0:02:53]} Nc6 {[%emt 0:01:03]} 5. Be2 {[%emt 0:02:13]} Bc5 {[%emt 0:00:45]} 6. Nxe5 {[%emt 0:00:27]} Bxf2+ {[%emt 0:00:47]} 7. Kxf2 {[%emt 0:00:06]} Nxe5 {[%emt 1:29:54]} 8. d4 {[%emt 0:00:56]} Ng6 {[%emt 0:00:00]} 9. e5 {[%emt 0:01:47]} Ng8 {[%emt 0:00:00]} 10. Rf1 {[%emt 1:26:52]} N8e7 11. Kg1 O-O 12. Bd3 c6 13. Ne4 d5 14. exd6 Nf5 15. Qh5 Nxd6 16. Ng5 h6 17. Nxf7 Rxf7 18. Rxf7 Nxf7 19. Qxg6 {[%emt 0:00:00]} Qxd4+ {[%emt 0:00:00]} 20. Kh1 {[%emt 0:00:00]} Qf6 {[%emt 0:00:00]} 21. Qh7+ {[%emt 0:00:00]} Kf8 {[%emt 0:00:00]} 22. Be3 {[%emt 0:00:00]} Ke7 {[%emt 0:00:00]} 23. Rf1 Qe5 {[%emt 0:00:00]} 24. Qg8 Qxe3 {[%emt 0:08:30]} 25. Rxf7+ {[%emt 0:07:30]} Kd6 {[%emt 0:00:00]} 26. Qf8+ {[%emt 0:00:00]} Ke5 {[%emt 0:00:00]} 27. Qe7+ Be6 {[%emt 0:01:30]} 28. Rf5+ {[%emt 0:01:30]} Kd4 {[%emt 0:00:00]} 29. Qd6+ {[%emt 0:00:00]} Bd5 {[%emt 0:00:00]} 30. Qxd5+ {[%emt 0:00:00]} cxd5 {[%emt 0:00:00]} 31. Rxd5# {[%emt 0:00:00]} 1-0

[Event "17th Memorial Lezcano Montalvo 2025"]
[Site "Gran Canaria"]
[Date "2025.04.12"]
[Round "1.36"]
[White "Trocoli Romero, Luis Dingyu"]
[Black "Marrero Cardenes, Agustin"]
[Result "0-1"]
[Annotator "RC"]
[ECO "E12"]
[WhiteElo "1599"]
[BlackElo "2163"]
[PlyCount "66"]
[EventDate "2025.04.13"]
[EventType "swiss"]
[EventCountry "ESP"]
[SourceTitle "playchess.com"]
[Source "ChessBase"]
[SourceQuality "1"]
[TimeControl "5400+30"]

1. d4 {[%emt 0:00:02]} Nf6 {[%emt 0:00:14]} 2. Nf3 {[%emt 0:00:06]} e6 {[%emt 0:00:08]} 3. c4 {[%emt 0:00:05]} b6 {[%emt 0:00:20]} 4. Bf4 {[%emt 0:01:36]} Bb7 {[%emt 0:00:22]} 5. e3 {[%emt 0:00:08]} Bb4+ {[%emt 0:01:37]} 6. Nc3 {[%emt 0:04:50]} O-O {[%emt 0:02:12]} 7. Bd3 {[%emt 0:03:19]} Ne4 {[%emt 0:01:24]} 8. Qc2 {[%emt 0:00:28]} Bxc3+ {[%emt 0:00:13]} 9. bxc3 {[%emt 0:00:16]} f5 {[%emt 0:00:10]} 10. O-O {[%emt 0:02:32]} d6 {[%emt 0:02:05]} 11. Qb3 {[%emt 0:02:14]} Qf6 {[%emt 0:03:10]} 12. d5 {[%emt 0:03:58]} e5 {[%emt 0:01:12]} 13. Bg3 {[%emt 0:00:48]} Nc5 {[%emt 0:00:35]} 14. Qc2 {[%emt 0:00:26]} Nxd3 {[%emt 0:00:19]} 15. Qxd3 {[%emt 0:00:11]} e4 {[%emt 0:00:05]} 16. Qd4 {[%emt 0:01:06]} exf3 {[%emt 0:00:12]} 17. gxf3 {[%emt 0:01:44]} Nd7 {[%emt 0:02:25]} 18. Rab1 {[%emt 0:00:28]} Rae8 {[%emt 0:00:34]} 19. Qxf6 {[%emt 0:01:01]} Rxf6 {[%emt 0:00:10]} 20. a4 {[%emt 0:00:33]} a5 {[%emt 0:00:11]} 21. Rfe1 {[%emt 0:00:48]} Nc5 {[%emt 0:00:25]} 22. Ra1 {[%emt 0:00:19]} Ba6 {[%emt 0:00:15]} 23. Bh4 {[%emt 0:01:19]} g5 {[%emt 0:00:49]} 24. Bxg5 {[%emt 0:01:07]} Rg6 {[%emt 0:00:10]} 25. f4 {[%emt 0:00:51]} h6 {[%emt 0:00:08]} 26. h4 {[%emt 0:00:11]} hxg5 {[%emt 0:00:10]} 27. fxg5 {[%emt 0:00:12]} Kf7 {[%emt 0:00:08]} 28. f4 {[%emt 0:00:15]} Rh8 {[%emt 0:00:10]} 29. Kg2 {[%emt 0:01:05]} Bxc4 {[%emt 0:00:37]} 30. Rad1 {[%emt 0:00:48]} Nd3 {[%emt 0:00:32]} 31. Re2 {[%emt 0:00:47]} Nxf4+ {[%emt 0:00:11]} 32. exf4 {[%emt 0:00:13]} Bxe2 {[%emt 0:00:08]} 33. Re1 {[%emt 0:00:08]} Bc4 {[%emt 1:25:39]} 0-1